bitfinex/quotes_ETHUSD_20240811
["timestamp","ask_amount","ask_price","bid_price","bid_amount"]
[1723411057011,3.89927,2564.6,2563.8,3.0]
[1723411057012,7.73427,2564.6,2563.8,3.0]
[1723411057307,3.89901,2564.8,2563.8,3.0]
[1723411057478,3.89903,2564.8,2564.0,3.90004]
[1723411057671,3.89924,2564.6,2563.9,0.86997856]
[1723411057867,3.89957,2564.4,2563.8,3.0]
[1723411058399,3.835,2565.0,2563.8,3.0]
[1723411058400,3.89907,2564.8,2563.9,3.90016]
[1723411058621,3.89907,2564.8,2564.0,3.0]
[1723411058905,3.835,2565.0,2564.0,3.0]
[1723411058906,3.835,2565.0,2564.0,3.90014]
[1723411059116,3.8988,2564.9,2564.2,3.89985]
[1723411059428,3.89903,2564.8,2564.0,3.90014]
[1723411059581,3.89903,2564.8,2564.0,3.90006]
[1723411059788,3.89936,2564.6,2563.8,6.90037]
[1723411060103,7.73453,2564.5,2563.7,3.90059]
[1723411060299,3.835,2564.5,2563.7,0.780126]
[1723411060481,3.835,2564.5,2563.9,3.90029]
[1723411060821,3.835,2564.5,2563.8,3.90035]
[1723411060971,3.835,2564.5,2563.8,4.7584466]
[1723411061306,3.835,2564.5,2563.8,3.90033]
[1723411061618,3.835,2564.5,2564.0,3.90006]
[1723411062233,3.835,2564.5,2564.2,3.89984]
[1723411062888,3.835,2564.5,2564.1,3.9]
[1723411063258,3.835,2564.5,2564.0,3.90006]
[1723411063259,7.73386,2564.9,2564.2,3.89983]
[1723411063394,7.73386,2564.9,2564.2,3.89976]
[1723411064099,3.89939,2564.6,2563.9,6.9003]
[1723411064299,3.89906,2564.8,2564.0,3.90014]
[1723411064619,3.89928,2564.6,2563.9,3.0]
[1723411064974,3.89928,2564.6,2563.9,6.90019]
[1723411065175,3.89928,2564.6,2563.9,7.980245]
[1723411065400,7.27,2564.7,2564.0,3.90007]
[1723411065784,7.27,2564.7,2563.9,3.0]
[1723411066014,3.835,2564.5,2563.6,4.7643]
[1723411066211,3.89955,2564.4,2563.6,8.66504]
[1723411066420,3.835,2564.5,2563.9,3.9002]
[1723411066578,11.16914,2564.7,2563.9,8.19044]
[1723411066775,11.16914,2564.7,2563.6,4.7643]
[1723411066776,7.27,2564.7,2563.6,4.7643]
[1723411067083,7.27,2564.7,2563.6,8.66502]
[1723411067084,7.79932,2564.4,2563.6,8.66502]
[1723411067284,4.44932,2564.6,2563.8,3.90042]
[1723411067480,4.44932,2564.6,2563.8,5.456964]
[1723411067906,3.89963,2564.4,2563.8,1.556544]
[1723411068080,3.89971,2564.3,2563.7,3.0]
[1723411068286,7.79927,2564.4,2563.7,3.0]
[1723411068512,3.89932,2564.6,2563.8,3.90044]
[1723411068812,7.79866,2564.6,2563.9,3.90026]
[1723411068978,3.89932,2564.6,2563.9,3.90026]
[1723411069174,7.79866,2564.6,2563.9,3.90026]
[1723411069416,4.6396,2565.6,2564.6,3.89921]
[1723411069630,7.27,2566.1,2564.7,11.66328]
[1723411069631,3.8979,2565.5,2564.7,11.66328]
[1723411069983,3.8979,2565.5,2564.8,3.97690075]
[1723411070315,3.89821,2565.3,2564.7,3.0]
[1723411070526,3.89848,2565.1,2564.6,3.0]
[1723411070683,2.872,2565.0,2564.5,3.0]
[1723411071023,2.872,2565.0,2564.3,3.89959]
[1723411071188,2.872,2565.0,2564.4,3.0]
[1723411071580,2.872,2565.0,2564.3,3.89959]
[1723411071581,2.872,2565.0,2563.8,4.7108]
[1723411071813,3.89918,2564.7,2563.8,4.7108]
[1723411071981,4.8836,2564.8,2564.1,3.8999]
[1723411072191,4.8836,2564.8,2563.9,3.90024]
[1723411072396,4.8836,2564.8,2563.9,3.90023]
[1723411072614,3.89963,2564.4,2563.5,4.7108]
[1723411072819,3.89948,2564.5,2563.7,3.90046]
[1723411072978,4.8836,2564.8,2563.9,3.90029]
[1723411073180,5.81684,2564.8,2564.2,3.89983]
[1723411073507,7.79839,2564.7,2563.9,4.290229]
[1723411073705,3.89917,2564.7,2563.9,4.290209]
[1723411073907,7.79835,2564.7,2563.9,4.290209]
[1723411074114,8.66109853,2564.7,2563.9,4.290209]
[1723411074624,3.90039,2563.9,2563.1,3.90143]
[1723411074989,3.90039,2563.9,2563.2,3.90128]
[1723411075186,3.90039,2563.9,2563.1,3.90143]
[1723411075187,3.90048,2563.8,2563.1,3.90143]
[1723411075421,3.90061,2563.7,2563.1,0.780318]
[1723411075736,4.8836,2564.2,2562.8,4.7108]
[1723411075885,3.90108,2563.4,2562.8,4.7108]
[1723411076082,7.80166,2563.6,2562.8,4.7108]
[1723411076287,0.55,2564.1,2562.5,3.90233]
[1723411076288,3.90124,2563.3,2562.5,3.90233]
[1723411076603,3.90124,2563.3,2562.6,3.90227]
[1723411077113,8.78465,2563.5,2562.7,3.90202]
[1723411077311,3.90109,2563.4,2562.5,4.81117251]
[1723411077516,3.90109,2563.4,2562.6,6.90218]
[1723411077692,3.90109,2563.4,2562.7,1.17133525]
[1723411078493,8.78465,2563.5,2562.7,5.07344525]
[1723411078709,8.78465,2563.5,2562.8,3.0]
[1723411079032,12.68569,2563.5,2562.8,3.0]
[1723411079236,8.78464,2563.5,2562.8,3.0]
[1723411079593,3.90107,2563.4,2562.8,3.0]
[1723411080496,3.90163,2563.1,2562.4,4.7108]
[1723411080692,3.90163,2563.1,2562.3,4.37799514]
[1723411080924,3.90133,2563.3,2562.5,3.90231]
[1723411081094,5.169661,2563.4,2562.6,3.90223]
[1723411081288,5.169661,2563.4,2562.5,4.70783256]
[1723411081289,7.80167,2563.6,2562.7,3.90211]
[1723411081531,3.90078,2563.6,2562.8,3.90186]
[1723411081734,3.90078,2563.6,2562.9,3.90178]
[1723411081937,5.169267,2563.6,2562.9,3.90178]
[1723411082320,5.169267,2563.6,2562.7,3.90202]
[1723411082519,9.070137,2563.6,2562.8,3.90197]
[1723411083261,3.90093,2563.5,2562.8,3.90197]
[1723411083458,3.90093,2563.5,2562.7,3.90202]
[1723411083665,3.90093,2563.5,2562.7,4.76301026]
[1723411084117,12.68464,2563.8,2562.9,8.61252]
[1723411084322,4.8836,2563.8,2562.7,0.86099026]
[1723411084546,3.90119,2563.4,2562.7,7.76312026]
[1723411086024,8.78412,2563.8,2562.7,3.86099026]
[1723411086221,7.27,2563.8,2562.8,0.93520723]
[1723411086464,11.17047,2563.8,2563.0,3.90155]
[1723411086631,11.17047,2563.8,2563.1,6.9015]
[1723411087138,7.27,2564.1,2563.6,3.90064]
[1723411087336,7.27,2564.1,2563.7,0.390064]
[1723411087539,19.87,2564.2,2563.7,0.390064]
[1723411087753,23.76986,2564.2,2563.7,0.390064]
[1723411088069,23.76986,2564.2,2563.5,6.90082]
[1723411088561,27.66982,2564.2,2563.5,3.0]
[1723411088861,23.76986,2564.2,2563.5,3.690096]
[1723411089164,3.90017,2564.0,2563.5,3.690096]
[1723411089358,3.90017,2564.0,2563.0,3.9016]
[1723411089359,3.90055,2563.8,2563.0,3.9016]
[1723411089565,3.90016,2564.0,2563.1,3.0]
[1723411089763,3.90072,2563.7,2563.0,6.90165]
[1723411090134,7.80144,2563.7,2563.0,6.90165]
[1723411090358,3.90072,2563.7,2563.0,6.90165]
[1723411090532,5.328766,2563.9,2563.1,3.90151]
[1723411090533,3.90046,2563.8,2563.1,3.90151]
[1723411090733,3.90046,2563.8,2563.1,5.062741]
[1723411090972,3.90062,2563.7,2563.1,1.161231]
[1723411091472,5.328766,2563.9,2563.1,5.062751]
[1723411091473,9.229206,2563.9,2563.1,5.062751]
[1723411091769,5.328766,2563.9,2563.1,1.161231]
[1723411091934,3.90064,2563.7,2563.1,5.062741]
[1723411092132,5.328766,2563.9,2563.1,5.062741]
[1723411092528,5.0142,2564.6,2563.3,5.0292]
[1723411092774,3.89948,2564.5,2563.7,3.90048]
[1723411093068,5.0142,2564.6,2563.9,3.9003]
[1723411093311,5.0142,2564.6,2564.0,0.39003]
[1723411093481,5.0142,2564.6,2563.9,3.9003]
[1723411093654,5.0142,2564.6,2563.9,3.90021]
[1723411093827,3.8994,2564.5,2563.8,3.0]
[1723411094026,5.0142,2564.6,2563.8,3.0]
[1723411094281,5.0142,2564.6,2563.9,4.20018]
[1723411094607,8.91355,2564.6,2563.9,3.90018]
[1723411094755,3.90024,2564.0,2563.4,0.67477296]
[1723411094954,9.304464,2564.0,2563.1,3.90142]
[1723411095150,8.91444,2564.0,2563.3,3.90113]
[1723411095355,8.91444,2564.0,2563.4,3.0]
[1723411095974,12.8147,2564.0,2563.4,3.0]
[1723411096178,8.91444,2564.0,2563.4,3.0]
[1723411096388,8.91384,2564.4,2563.5,0.690113]
[1723411096564,8.91384,2564.4,2563.5,4.590903]
[1723411096772,3.89996,2564.2,2563.5,0.690113]
[1723411096975,3.90014,2564.1,2563.5,0.690113]
[1723411097178,3.89996,2564.2,2563.6,0.7591163]
[1723411097602,3.90016,2564.0,2563.6,0.7591163]
[1723411097775,3.89995,2564.2,2563.5,0.690113]
[1723411097972,3.90047,2563.8,2563.5,0.690113]
[1723411098176,3.90047,2563.8,2563.0,3.0]
[1723411098177,7.80106,2563.8,2563.0,3.0]
[1723411098470,7.80106,2563.8,2562.7,0.67488718]
[1723411098471,3.90085,2563.6,2562.7,4.57690718]
[1723411098672,3.90108,2563.4,2562.8,1.00137157]
[1723411099262,8.91471,2563.8,2563.1,3.90139]
[1723411099481,5.0142,2563.8,2563.1,3.90139]
[1723411099765,3.90117,2563.4,2562.8,1.00137157]
[1723411100079,7.80232,2563.4,2562.6,8.93137]
[1723411100461,3.90115,2563.4,2562.7,3.90212]
[1723411100662,5.0142,2563.8,2562.6,8.93143]
[1723411100907,5.0142,2564.3,2563.5,3.90086]
[1723411101110,3.89953,2564.5,2563.7,3.90051]
[1723411101111,19.55,2564.4,2563.7,3.90051]
[1723411101403,23.44963,2564.4,2563.7,3.90051]
[1723411101605,19.55,2564.4,2563.7,3.90051]
[1723411101815,19.55,2564.4,2563.9,3.90029]
[1723411102999,19.55,2564.4,2563.9,4.68037]
[1723411103685,19.55,2564.4,2563.6,6.90072]
[1723411104197,19.55,2564.4,2563.8,3.90035]
[1723411104198,7.27,2564.4,2563.8,3.90035]
[1723411106219,7.27,2564.4,2563.6,3.0]
[1723411106220,7.27,2564.4,2564.1,3.89991]
[1723411106377,19.87,2564.6,2564.2,3.89984]
[1723411106581,19.87,2564.6,2563.9,7.85870778]
[1723411106582,7.27,2564.8,2564.5,3.89933]
[1723411106782,7.27,2564.8,2564.5,4.98702459]
[1723411106982,7.27,2564.8,2564.6,3.0]
[1723411107177,7.27,2564.8,2564.5,1.08769459]
[1723411107597,7.27,2564.8,2564.5,4.08769459]
[1723411107914,3.89826,2565.3,2564.5,12.76769459]
[1723411108119,3.89826,2565.3,2564.6,1.27676946]
[1723411108279,3.89878,2564.9,2564.5,3.0]
[1723411108484,3.89886,2564.9,2564.3,3.0]
[1723411108684,8.54307,2565.0,2564.3,4.16804]
[1723411108883,3.89879,2564.9,2564.3,1.16804]
[1723411109606,7.79769,2564.9,2564.3,1.16804]
[1723411109807,3.89879,2564.9,2564.2,3.0]
[1723411109992,3.89879,2564.9,2564.2,6.89982]
[1723411110202,7.79766,2564.9,2564.2,6.89982]
[1723411110405,8.54262,2565.3,2564.2,3.0]
[1723411110607,3.89891,2564.9,2564.2,3.89982]
[1723411110805,3.89898,2564.8,2564.2,3.89982]
[1723411111021,4.343614,2565.0,2564.2,3.89974]
[1723411111198,4.44839,2565.2,2564.5,3.89929]
[1723411111199,4.44842,2565.2,2564.5,3.89929]
[1723411111408,3.89842,2565.2,2564.4,8.8118]
[1723411111609,4.6444,2565.3,2564.4,6.09358]
[1723411111878,11.16811,2565.4,2564.8,3.8988]
[1723411111879,7.27,2565.4,2564.8,3.8988]
[1723411112088,7.27,2565.4,2564.9,3.89874]
[1723411112685,7.27,2565.4,2564.7,3.89895]
[1723411112886,7.27,2565.4,2564.8,3.89891]
[1723411113788,3.89818,2565.3,2564.7,4.288845]
[1723411113984,11.16813,2565.4,2564.7,4.288845]
[1723411114223,15.06625,2565.4,2564.7,4.288845]
[1723411114530,11.16812,2565.4,2564.8,0.4288845]
[1723411114820,15.06629,2565.4,2564.8,0.4288845]
[1723411115005,11.16812,2565.4,2564.8,0.4288845]
[1723411115204,11.16812,2565.4,2564.8,4.3278045]
[1723411115403,3.89818,2565.3,2564.8,0.4288845]
[1723411115607,3.89834,2565.2,2564.7,3.0]
[1723411115850,7.27,2565.4,2564.5,3.0]
[1723411116133,3.89842,2565.2,2564.4,3.0]
[1723411116316,3.89842,2565.2,2564.0,4.9124]
[1723411116317,3.89842,2565.2,2564.5,3.89926]
[1723411116627,3.89858,2565.1,2564.3,3.89957]
[1723411116795,3.89858,2565.1,2564.4,6.89946]
[1723411117127,3.89858,2565.1,2564.4,7.979363]
[1723411117326,3.89863,2565.0,2564.4,4.079903]
[1723411117510,7.79738,2565.0,2564.4,3.0]
[1723411117719,3.89863,2565.0,2564.4,3.0]
[1723411118023,7.79736,2565.0,2564.4,3.0]
[1723411118236,3.89863,2565.0,2564.4,3.0]
[1723411118542,7.79738,2565.0,2564.4,3.0]
[1723411118829,3.89863,2565.0,2564.4,3.689957]
[1723411118989,3.89863,2565.0,2564.4,7.589467]
[1723411119485,3.89839,2565.2,2564.4,3.689957]
[1723411119486,3.8984,2565.2,2564.4,3.689957]
[1723411119712,3.8984,2565.2,2564.5,6.89929]
[1723411119909,3.8984,2565.2,2564.5,10.7986]
[1723411120150,3.8984,2565.2,2564.5,6.89929]
[1723411120846,3.8984,2565.2,2564.5,10.7986]
[1723411121024,3.8984,2565.2,2564.5,6.89929]
[1723411121347,3.8984,2565.2,2564.5,7.589219]
[1723411122011,3.8984,2565.2,2564.6,3.89923]
[1723411122608,3.8984,2565.2,2564.5,7.589219]
[1723411122941,3.8984,2565.2,2564.5,6.89929]
[1723411123251,3.8984,2565.2,2564.5,10.7986]
[1723411123435,3.8984,2565.2,2564.5,6.89929]
[1723411124547,3.8984,2565.2,2564.5,10.7986]
[1723411125047,7.27,2565.4,2564.6,3.9771394]
[1723411125236,11.16815,2565.4,2564.8,3.89885]
[1723411126944,11.16811,2565.4,2564.7,5.08802394]
[1723411127148,11.16811,2565.4,2564.8,3.0]
[1723411128163,3.89819,2565.3,2564.8,3.0]
[1723411128326,11.16811,2565.4,2564.7,4.18895394]
[1723411128327,7.27,2565.4,2564.7,4.18895394]
[1723411128528,3.89819,2565.3,2564.7,4.18895394]
[1723411129321,3.89819,2565.3,2564.7,3.0]
[1723411129639,3.89875,2565.0,2564.3,6.89954]
[1723411130129,3.89875,2565.0,2564.3,10.79915]
[1723411130329,3.89855,2565.1,2564.4,5.470675]
[1723411130560,3.89818,2565.3,2564.7,3.89906]
[1723411130772,3.89835,2565.2,2564.5,3.89928]
[1723411130969,3.89835,2565.2,2564.6,6.89924]
[1723411131873,15.06619,2565.4,2564.7,3.89901]
[1723411132032,11.16806,2565.4,2564.8,3.89893]
[1723411132230,11.16806,2565.4,2564.7,5.02455155]
[1723411132231,11.16806,2565.4,2564.7,9.93695155]
[1723411132942,11.16806,2565.4,2564.7,9.93694155]
[1723411133846,11.16806,2565.4,2564.7,13.83595155]
[1723411134171,15.06617,2565.4,2564.8,1.68359516]
[1723411134467,15.06617,2565.4,2564.7,9.93694155]
[1723411134468,7.27,2565.4,2564.7,6.03794155]
[1723411134771,7.27,2565.4,2565.0,7.79715]
[1723411134973,7.27,2565.4,2565.0,3.89853]
[1723411135279,7.27,2565.4,2564.9,3.8987]
[1723411135569,7.27,2565.4,2565.0,3.89852]
[1723411139683,11.16714,2566.0,2565.1,3.0]
[1723411139885,3.89698,2566.1,2565.4,3.89791]
[1723411140184,3.89712,2566.0,2565.4,3.89791]
[1723411140395,3.89738,2565.9,2565.2,4.19825]
[1723411140542,7.79474,2565.9,2565.2,4.19825]
[1723411140743,4.77213,2566.8,2566.4,3.89649]
[1723411140939,0.12503,2566.8,2566.2,3.89674]
[1723411141184,0.12503,2566.8,2566.4,3.89649]
[1723411141692,0.12503,2566.8,2566.4,3.8964]
[1723411141839,0.12503,2566.8,2566.6,3.89615]
[1723411142244,0.12503,2566.8,2566.1,6.8969]
[1723411142245,0.12503,2566.8,2566.2,3.89675]
[1723411142490,3.89631,2566.6,2566.1,3.0]
[1723411142657,8.54329,2566.7,2565.9,6.89725]
[1723411142855,8.54329,2566.7,2565.9,7.754642]
[1723411143495,8.54329,2566.7,2565.9,3.857392]
[1723411143883,3.89646,2566.5,2565.9,3.0]
[1723411144195,3.89646,2566.5,2565.8,3.0]
[1723411144364,3.89646,2566.5,2565.7,3.0]
[1723411144578,7.79296,2566.5,2565.7,3.0]
[1723411144774,3.89646,2566.5,2565.7,3.689767]
[1723411144976,3.89646,2566.5,2565.8,3.89741]
[1723411145172,7.27,2566.6,2566.0,3.897]
[1723411145506,11.16621,2566.6,2565.9,6.89723]
[1723411145670,11.16621,2566.6,2566.0,1.079464]
[1723411146862,11.16621,2566.6,2565.9,3.0]
[1723411146863,3.89663,2566.4,2565.9,3.0]
[1723411147069,11.16621,2566.6,2565.8,3.8974]
[1723411147264,11.16621,2566.6,2565.9,3.0]
[1723411147495,3.89637,2566.5,2565.9,3.0]
[1723411147809,3.8965,2566.4,2565.9,3.0]
[1723411147962,3.89671,2566.3,2565.4,8.57458]
[1723411148162,8.863834,2566.6,2566.1,3.89686]
[1723411148361,7.27,2566.6,2566.1,3.89686]
[1723411148860,7.27,2566.6,2566.1,7.79372]
[1723411149060,0.12503,2566.8,2566.2,3.89679]
[1723411149262,0.12503,2566.8,2566.7,3.89605]
[1723411149919,0.12503,2566.8,2566.5,3.89625]
[1723411150086,0.12503,2566.8,2566.6,0.857285]
[1723411150287,0.12503,2566.8,2566.6,4.753455]
[1723411150528,0.12503,2566.8,2566.3,6.89657]
[1723411151101,0.12503,2566.8,2566.7,16.60185]
[1723411151420,0.12503,2566.8,2566.7,17.54305]
[1723411151714,0.12503,2566.8,2566.7,20.88799466]
[1723411152131,3.89396,2568.1,2567.4,3.89485]
[1723411152422,7.37,2569.3,2567.4,3.89485]
[1723411152423,4.0171,2569.4,2568.4,4.7983]
[1723411152721,3.89305,2568.7,2568.0,4.7983]
[1723411153014,4.8052,2569.2,2568.0,9.03630466]
[1723411153015,3.893,2568.8,2568.0,9.03630466]
[1723411153224,3.89312,2568.7,2568.1,3.0]
[1723411153563,3.89258,2569.0,2568.2,4.70798447]
[1723411153756,3.89281,2568.9,2568.2,4.70793447]
[1723411153880,3.89281,2568.9,2568.2,0.81422447]
[1723411154082,4.8052,2569.2,2568.1,3.34394466]
[1723411154282,3.89281,2568.9,2568.1,6.8939]
[1723411154490,3.89263,2569.0,2568.1,3.0]
[1723411154688,4.8052,2569.2,2568.1,3.0]
[1723411154689,3.89296,2568.8,2568.1,3.0]
[1723411155123,3.89296,2568.8,2568.1,6.89382]
[1723411155421,3.89267,2569.0,2568.2,3.89363]
[1723411155719,3.89272,2568.9,2568.2,3.89363]
[1723411155918,3.89267,2569.0,2568.2,5.452226]
[1723411156133,3.89273,2568.9,2568.2,5.452226]
[1723411156516,3.89295,2568.8,2568.2,1.558596]
[1723411156826,8.69753,2569.2,2568.2,1.558596]
[1723411157128,8.69748,2569.2,2568.4,3.89334]
[1723411157349,4.01705,2569.4,2568.6,3.89305]
[1723411157548,4.01705,2569.4,2568.7,0.389305]
[1723411157752,3.89221,2569.3,2568.4,6.89342]
[1723411157925,0.12503,2569.4,2568.4,6.89346]
[1723411157926,3.89235,2569.2,2568.4,6.89346]
[1723411158247,3.89235,2569.2,2568.5,3.8933]
[1723411158454,3.89235,2569.2,2568.6,3.0]
[1723411158650,3.89235,2569.2,2568.4,3.0]
[1723411158651,3.89266,2569.0,2568.4,3.0]
[1723411158816,3.89231,2569.2,2568.5,0.34558596]
[1723411159020,3.89231,2569.2,2568.5,3.34558596]
[1723411159226,7.78468,2569.2,2568.5,3.34558596]
[1723411159452,3.89231,2569.2,2568.5,3.34558596]
[1723411159957,3.89256,2569.0,2568.5,0.34558596]
[1723411160126,3.89231,2569.2,2568.6,0.3345586]
[1723411160532,3.89315,2568.7,2568.0,4.7983]
[1723411160737,3.89315,2568.7,2568.0,3.89398]
[1723411161262,3.89315,2568.7,2567.8,3.89427]
[1723411161440,12.1378,2568.9,2567.6,4.7525]
[1723411161441,16.03063,2568.9,2567.6,4.7525]
[1723411161645,3.89316,2568.7,2567.9,3.89413]
[1723411161823,3.89316,2568.7,2568.1,3.89392]
[1723411162216,18.861593,2568.9,2568.1,3.89381]
[1723411162825,3.89302,2568.7,2568.0,3.89398]
[1723411163154,4.8918,2568.2,2567.2,5.433]
[1723411163358,3.89458,2567.7,2567.0,7.79096]
[1723411163528,3.89458,2567.7,2566.9,5.0418]
[1723411163529,3.8948,2567.6,2566.9,5.0418]
[1723411163727,3.89458,2567.7,2566.9,5.0418]
[1723411163966,7.27,2567.9,2567.0,0.97166026]
[1723411164163,7.27,2567.9,2567.2,3.89515]
[1723411164367,7.27,2567.9,2567.0,4.86718026]
[1723411164368,3.89458,2567.7,2567.0,0.893759]
[1723411164524,3.89469,2567.6,2566.5,5.0418]
[1723411164868,3.89503,2567.4,2566.5,5.0418]
[1723411165050,4.773713,2567.4,2566.5,5.94340855]
[1723411165265,3.89586,2566.9,2566.5,0.90160855]
[1723411165422,3.89586,2566.9,2566.1,5.0418]
[1723411165777,3.8955,2567.1,2566.1,5.0418]
[1723411165928,4.8918,2568.1,2567.1,5.0418]
[1723411166131,4.8918,2568.1,2567.2,4.47722088]
[1723411166132,3.89408,2568.0,2567.2,4.47722088]
[1723411166358,3.89426,2567.9,2567.3,0.07789088]
[1723411166525,3.89404,2568.1,2567.3,1.02979297]
[1723411166949,3.89404,2568.1,2567.4,3.89489]
[1723411167241,7.78744,2568.3,2567.4,3.89489]
[1723411167431,3.89369,2568.3,2567.5,3.89482]
[1723411167633,8.78518,2568.5,2567.6,3.97254081]
[1723411167862,3.89358,2568.4,2567.6,7.86712081]
[1723411168041,3.89358,2568.4,2567.6,7.86706081]
[1723411168228,3.89373,2568.3,2567.7,0.9041222]
[1723411168427,3.89385,2568.2,2567.5,1.17416121]
[1723411168693,3.89347,2568.4,2567.5,1.17416121]
[1723411168966,3.89347,2568.4,2567.1,8.93716]
[1723411168967,3.8943,2567.9,2567.2,6.89526]
[1723411169467,4.44364,2568.3,2567.5,3.89479]
[1723411169782,3.89417,2568.0,2567.3,1.193706]
[1723411170008,3.89417,2568.0,2567.4,0.8088906]
[1723411170477,3.89429,2567.9,2567.4,0.8088906]
[1723411170641,0.55,2568.3,2567.1,3.0]
[1723411170642,4.44369,2568.3,2567.1,3.0]
[1723411170843,3.89404,2568.1,2567.4,3.8949]
[1723411171780,3.89404,2568.1,2567.4,7.78979]
[1723411171985,3.89244,2569.1,2567.1,3.0]
[1723411171986,5.0557,2568.9,2567.8,3.89428]
[1723411172140,11.16292,2568.8,2567.8,3.89428]
[1723411172342,3.89331,2568.6,2567.9,3.97201724]
[1723411172565,3.89331,2568.6,2567.9,0.86450696]
[1723411172968,3.89331,2568.6,2567.9,0.78662972]
[1723411173167,3.8939,2568.2,2567.7,3.0]
[1723411173577,3.89353,2568.4,2567.6,3.07788658]
[1723411173785,3.89353,2568.4,2567.7,4.73975656]
[1723411173956,5.0557,2568.9,2567.7,0.84523656]
[1723411174159,3.89359,2568.4,2567.7,0.84523656]
[1723411174486,3.89325,2568.6,2567.7,0.84523656]
[1723411174651,3.89325,2568.6,2568.0,3.89406]
[1723411174982,5.045,2568.4,2567.1,3.89537]
[1723411175193,5.045,2568.4,2567.2,3.0]
[1723411175347,3.8939,2568.2,2567.3,4.584552]
[1723411175545,0.5045,2568.3,2567.3,4.584552]
[1723411175546,0.5045,2568.3,2567.4,3.0]
[1723411175748,7.78768,2568.2,2567.5,3.8948]
[1723411175945,3.89377,2568.2,2567.5,5.0427462]
[1723411176146,3.89393,2568.1,2567.5,1.1479462]
[1723411176378,3.89413,2568.0,2567.5,1.1479462]
[1723411176563,3.89428,2567.9,2567.2,3.89524]
[1723411176764,3.89413,2568.0,2567.3,6.89502]
[1723411176964,3.89385,2568.2,2567.5,3.89481]
[1723411177281,3.89385,2568.2,2567.4,3.97275102]
[1723411177584,3.89385,2568.2,2567.4,3.89486]
[1723411177751,3.89385,2568.2,2567.4,3.89483]
[1723411177946,3.89364,2568.3,2567.6,3.89465]
[1723411178253,3.8938,2568.2,2567.5,0.7973892]
[1723411178877,3.89401,2568.1,2567.5,0.7973892]
[1723411179273,3.8938,2568.2,2567.5,0.7973892]
[1723411179456,3.89396,2568.1,2567.6,0.46922192]
[1723411179656,3.89396,2568.1,2567.3,10.79014]
[1723411179975,12.315,2568.4,2567.6,8.73288]
[1723411179976,7.27,2568.4,2567.6,8.73288]
[1723411180172,7.27,2568.4,2567.8,3.89429]
[1723411180374,12.28,2568.6,2567.8,3.97216702]
[1723411180571,12.28,2568.6,2567.8,0.07787702]
[1723411180772,12.28,2568.6,2568.0,3.89393]
[1723411180975,7.27,2568.7,2568.1,0.07787003]
[1723411181162,7.27,2568.7,2568.3,3.89354]
[1723411181364,7.27,2568.7,2568.3,7.78708]
[1723411181553,7.27,2568.7,2568.3,3.89354]
[1723411182084,7.27,2568.7,2568.3,7.78707]
[1723411182286,7.27,2568.7,2568.3,4.68002343]
[1723411182487,7.27,2568.7,2568.3,0.78649343]
[1723411182787,3.89325,2568.6,2568.0,3.0]
[1723411182987,3.89318,2568.6,2568.0,3.0]
[1723411183176,7.27,2568.7,2568.1,3.8938]
[1723411183500,7.27,2568.7,2568.2,3.89377]
[1723411183787,7.27,2568.7,2568.1,0.68938]
[1723411184095,7.27,2568.7,2568.2,3.97151711]
[1723411184255,3.89332,2568.5,2568.0,3.0]
[1723411184449,3.89332,2568.5,2567.8,3.89429]
[1723411184762,7.78674,2568.5,2567.9,3.7767578]
[1723411184980,3.89332,2568.5,2567.9,3.7767578]
[1723411185182,3.89349,2568.4,2567.9,3.7767578]
[1723411185375,3.89332,2568.5,2567.7,0.873288]
[1723411185376,3.89363,2568.3,2567.7,7.767818]
[1723411185675,3.89332,2568.5,2567.8,3.89436]
[1723411185881,3.89332,2568.5,2567.9,3.0]
[1723411186751,3.89356,2568.4,2567.9,3.0]
[1723411186975,3.89356,2568.4,2567.8,3.0]
[1723411187365,3.89356,2568.4,2567.8,6.89436]
[1723411187594,1.2315,2568.9,2567.9,3.8942]
[1723411187887,11.095,2569.0,2567.9,3.8942]
[1723411187888,7.27,2569.0,2568.0,0.07787875]
[1723411188094,7.27,2569.0,2568.3,3.89351]
[1723411188279,27.09,2569.3,2568.7,3.89291]
[1723411188480,7.22,2569.3,2568.7,3.89291]
[1723411189364,7.22,2569.3,2568.8,3.89274]
[1723411189567,11.11211,2569.3,2568.7,5.62460015]
[1723411189791,7.22,2569.3,2568.7,5.62460015]
[1723411189969,7.22,2569.3,2568.8,3.89274]
[1723411190290,7.17,2569.3,2568.8,5.23378402]
[1723411191278,3.8925,2569.1,2568.4,3.0]
[1723411191484,3.89242,2569.1,2568.4,3.89334]
[1723411191797,11.06221,2569.3,2568.6,3.89308]
[1723411192102,7.17,2569.3,2568.7,0.689308]
[1723411193100,7.17,2569.3,2568.8,3.89277]
[1723411193395,0.12503,2569.4,2568.9,3.89257]
[1723411193556,0.12503,2569.4,2568.8,7.78554]
[1723411193897,0.07503,2569.4,2568.9,4.7401748]
[1723411194194,0.07503,2569.4,2568.9,0.8474848]
[1723411194371,0.07503,2569.4,2568.8,7.78555]
[1723411194571,0.07503,2569.4,2568.8,3.89277]
[1723411194990,0.07503,2569.4,2569.0,3.89247]
[1723411195383,0.07503,2569.4,2568.6,3.0]